[Event "Titled Tuesday Blitz March 29 Late 2022"]
[White "Manelyuk, Daniil"]
[Black "Cagara, Paulina"]
[WhiteFideId "44173920"]
[BlackFideId "1124870"]
[WhiteElo "2222"]
[BlackElo "1780"]
[Result "1-0"]
[Round "02"]
[TimeControl "180+1"]
[Date "2022.03.30"]
[WhiteClock "0:00:04"]
[BlackClock "0:01:13"]

1. e4 {[%clk 0:02:58]}  c6 {[%clk 0:02:58]} 2. d4 {[%clk 0:02:57]}  d5 {[%clk 0:02:58]} 3. Nc3 {[%clk 0:02:57]}  a6 {[%clk 0:02:58]} 4. a4 {[%clk 0:02:19]}  dxe4 {[%clk 0:02:55]} 5. Nxe4 {[%clk 0:02:19]}  Nd7 {[%clk 0:02:53]} 6. Nf3 {[%clk 0:02:11]}  Ngf6 {[%clk 0:02:52]} 7. Bd3 {[%clk 0:02:09]}  Nxe4 {[%clk 0:02:51]} 8. Bxe4 {[%clk 0:02:09]}  Nf6 {[%clk 0:02:51]} 9. Bd3 {[%clk 0:02:10]}  Bg4 {[%clk 0:02:51]} 10. c3 {[%clk 0:02:06]}  e6 {[%clk 0:02:51]} 11. h3 {[%clk 0:02:05]}  Bh5 {[%clk 0:02:51]} 12. g4 {[%clk 0:02:05]}  Bg6 {[%clk 0:02:50]} 13. Ne5 {[%clk 0:02:06]}  Bxd3 {[%clk 0:02:49]} 14. Qxd3 {[%clk 0:02:07]}  Bd6 {[%clk 0:02:48]} 15. f4 {[%clk 0:02:02]}  Qc7 {[%clk 0:02:46]} 16. O-O {[%clk 0:01:54]}  O-O {[%clk 0:02:35]} 17. Nc4 {[%clk 0:01:44]}  c5 {[%clk 0:02:34]} 18. Be3 {[%clk 0:00:42]}  Rfd8 {[%clk 0:02:33]} 19. Nxd6 {[%clk 0:00:18]}  Qxd6 {[%clk 0:02:30]} 20. Rad1 {[%clk 0:00:18]}  Qc6 {[%clk 0:02:27]} 21. Qc4 {[%clk 0:00:15]}  Qe4 {[%clk 0:02:20]} 22. Rfe1 {[%clk 0:00:15]}  Qf3 {[%clk 0:02:17]} 23. Qf1 {[%clk 0:00:14]}  Qg3+ {[%clk 0:02:09]} 24. Qg2 {[%clk 0:00:14]}  Qh4 {[%clk 0:02:05]} 25. Bf2 {[%clk 0:00:09]}  Qh6 {[%clk 0:02:04]} 26. g5 {[%clk 0:00:10]}  Qh5 {[%clk 0:02:02]} 27. gxf6 {[%clk 0:00:11]}  g6 {[%clk 0:02:02]} 28. dxc5 {[%clk 0:00:11]}  Rxd1 {[%clk 0:02:00]} 29. Qxb7 {[%clk 0:00:10]}  Rxe1+ {[%clk 0:01:58]} 30. Bxe1 {[%clk 0:00:11]}  Rd8 {[%clk 0:01:57]} 31. c6 {[%clk 0:00:09]}  Qe2 {[%clk 0:01:47]} 32. Bf2 {[%clk 0:00:08]}  Qd1+ {[%clk 0:01:45]} 33. Kh2 {[%clk 0:00:08]}  Qd2 {[%clk 0:01:44]} 34. Kg2 {[%clk 0:00:07]}  Qd5+ {[%clk 0:01:42]} 35. Kg1 {[%clk 0:00:04]}  h5 {[%clk 0:01:41]} 36. c7 {[%clk 0:00:04]}  Qd1+ {[%clk 0:01:24]} 37. Kg2 {[%clk 0:00:04]}  Rf8 {[%clk 0:01:18]} 38. c8=Q {[%clk 0:00:04]}  Rxc8 {[%clk 0:01:18]} 39. Qxc8+ {[%clk 0:00:04]}  Kh7 {[%clk 0:01:18]} 40. Qf8 {[%clk 0:00:04]}  Qd5+ {[%clk 0:01:13]} 41. Kh2 {[%clk 0:00:04]} 1-0


[Site "https://www.chess.com"]

[Event "Titled Tuesday Blitz March 29 Late 2022"]
[White "Mangialardo, Tiago Carvalho"]
[Black "Sliwicki, Damian"]
[WhiteFideId "2130718"]
[BlackFideId "1127128"]
[WhiteElo "2061"]
[BlackElo "2067"]
[Result "0-1"]
[Round "02"]
[TimeControl "180+1"]
[Date "2022.03.30"]
[WhiteClock "0:00:03"]
[BlackClock "0:00:17"]

1. e4 {[%clk 0:02:45]}  e5 {[%clk 0:02:56]} 2. Nf3 {[%clk 0:02:43]}  Nc6 {[%clk 0:02:56]} 3. d4 {[%clk 0:02:41]}  exd4 {[%clk 0:02:55]} 4. Nxd4 {[%clk 0:02:42]}  Bc5 {[%clk 0:02:52]} 5. Nxc6 {[%clk 0:02:33]}  Qf6 {[%clk 0:02:50]} 6. Qf3 {[%clk 0:02:34]}  Qxf3 {[%clk 0:02:44]} 7. gxf3 {[%clk 0:02:34]}  dxc6 {[%clk 0:02:42]} 8. Bf4 {[%clk 0:02:33]}  Bb6 {[%clk 0:02:34]} 9. Nc3 {[%clk 0:02:32]}  Ne7 {[%clk 0:02:29]} 10. a4 {[%clk 0:02:31]}  Ba5 {[%clk 0:02:19]} 11. Bd2 {[%clk 0:02:25]}  Be6 {[%clk 0:02:16]} 12. f4 {[%clk 0:02:16]}  Bg4 {[%clk 0:02:08]} 13. Be2 {[%clk 0:02:09]}  Bxe2 {[%clk 0:02:05]} 14. Nxe2 {[%clk 0:02:09]}  Bxd2+ {[%clk 0:02:04]} 15. Kxd2 {[%clk 0:02:10]}  O-O-O+ {[%clk 0:02:04]} 16. Ke3 {[%clk 0:02:10]}  Rhe8 {[%clk 0:02:05]} 17. Rad1 {[%clk 0:02:07]}  Nd5+ {[%clk 0:02:00]} 18. Kf3 {[%clk 0:02:02]}  Nb4 {[%clk 0:02:00]} 19. Nd4 {[%clk 0:01:44]}  c5 {[%clk 0:01:42]} 20. c3 {[%clk 0:01:37]}  cxd4 {[%clk 0:01:33]} 21. cxb4 {[%clk 0:01:37]}  Re6 {[%clk 0:01:30]} 22. Rd3 {[%clk 0:01:36]}  Rh6 {[%clk 0:01:01]} 23. h4 {[%clk 0:01:30]}  Rc6 {[%clk 0:00:40]} 24. e5 {[%clk 0:01:16]}  Rc4 {[%clk 0:00:38]} 25. Rb3 {[%clk 0:00:52]}  d3 {[%clk 0:00:39]} 26. Rd1 {[%clk 0:00:51]}  d2 {[%clk 0:00:39]} 27. Ke3 {[%clk 0:00:40]}  Rc2 {[%clk 0:00:39]} 28. f5 {[%clk 0:00:31]}  Rd5 {[%clk 0:00:33]} 29. f4 {[%clk 0:00:31]}  c6 {[%clk 0:00:30]} 30. h5 {[%clk 0:00:10]}  Kc7 {[%clk 0:00:26]} 31. Rd3 {[%clk 0:00:09]}  Rxb2 {[%clk 0:00:21]} 32. R1xd2 {[%clk 0:00:06]}  Rxd3+ {[%clk 0:00:19]} 33. Rxd3 {[%clk 0:00:05]}  Rxb4 {[%clk 0:00:19]} 34. Ra3 {[%clk 0:00:04]}  a5 {[%clk 0:00:19]} 35. Kf3 {[%clk 0:00:03]}  b5 {[%clk 0:00:19]} 36. axb5 {[%clk 0:00:03]}  Rxb5 {[%clk 0:00:19]} 37. Kg4 {[%clk 0:00:01]}  c5 {[%clk 0:00:19]} 38. Kg5 {[%clk 0:00:02]}  c4 {[%clk 0:00:19]} 39. f6 {[%clk 0:00:02]}  g6 {[%clk 0:00:16]} 40. hxg6 {[%clk 0:00:02]}  hxg6 {[%clk 0:00:17]} 41. Kh6 {[%clk 0:00:02]}  Kd7 {[%clk 0:00:17]} 42. Kg7 {[%clk 0:00:03]}  Ke6 {[%clk 0:00:17]} 43. Rc3 {[%clk 0:00:03]}  Rc5 {[%clk 0:00:17]} 44. Ra3 {[%clk 0:00:03]}  c3 {[%clk 0:00:17]} 45. Ra1 {[%clk 0:00:02]}  c2 {[%clk 0:00:17]} 46. Rc1 {[%clk 0:00:03]}  a4 {[%clk 0:00:18]} 47. Ra1 {[%clk 0:00:01]}  c1=Q {[%clk 0:00:17]} 48. Rxa4 {[%clk 0:00:02]}  Qc4 {[%clk 0:00:17]} 49. Ra6+ {[%clk 0:00:03]}  Qxa6 {[%clk 0:00:17]} 0-1


[Site "https://www.chess.com"]

[Event "Titled Tuesday Blitz March 29 Late 2022"]
[White "Martin Duque, Jesus"]
[Black "Jensen, Matthew R"]
[WhiteFideId "2208954"]
[BlackFideId "2018110"]
[WhiteElo "2243"]
[BlackElo "2300"]
[Result "1-0"]
[Round "02"]
[TimeControl "180+1"]
[Date "2022.03.30"]
[WhiteClock "0:00:23"]
[BlackClock "0:00:01"]

1. Nf3 {[%clk 0:02:59]}  d5 {[%clk 0:02:51]} 2. e3 {[%clk 0:02:59]}  c6 {[%clk 0:02:50]} 3. c4 {[%clk 0:02:58]}  e6 {[%clk 0:02:49]} 4. b3 {[%clk 0:02:54]}  f5 {[%clk 0:02:46]} 5. Bb2 {[%clk 0:02:54]}  Nf6 {[%clk 0:02:45]} 6. g3 {[%clk 0:02:54]}  Nbd7 {[%clk 0:02:46]} 7. Bg2 {[%clk 0:02:54]}  Bd6 {[%clk 0:02:46]} 8. d4 {[%clk 0:02:45]}  O-O {[%clk 0:02:46]} 9. O-O {[%clk 0:02:44]}  Ne4 {[%clk 0:02:40]} 10. Qe2 {[%clk 0:02:43]}  g5 {[%clk 0:02:37]} 11. Ne1 {[%clk 0:02:36]}  g4 {[%clk 0:02:07]} 12. Nd3 {[%clk 0:02:25]}  Ng5 {[%clk 0:01:47]} 13. Nd2 {[%clk 0:02:23]}  Nf6 {[%clk 0:01:39]} 14. f4 {[%clk 0:02:13]}  gxf3 {[%clk 0:01:24]} 15. Nxf3 {[%clk 0:02:12]}  Ng4 {[%clk 0:01:11]} 16. Nxg5 {[%clk 0:01:57]}  Qxg5 {[%clk 0:01:11]} 17. Nf4 {[%clk 0:01:56]}  Bd7 {[%clk 0:00:44]} 18. a3 {[%clk 0:01:51]}  Kh8 {[%clk 0:00:43]} 19. Kh1 {[%clk 0:01:42]}  Rg8 {[%clk 0:00:36]} 20. Bf3 {[%clk 0:01:34]}  h5 {[%clk 0:00:25]} 21. b4 {[%clk 0:01:20]}  Kg7 {[%clk 0:00:18]} 22. b5 {[%clk 0:01:15]}  h4 {[%clk 0:00:13]} 23. gxh4 {[%clk 0:01:15]}  Qxh4 {[%clk 0:00:13]} 24. Rg1 {[%clk 0:01:06]}  Kf7 {[%clk 0:00:10]} 25. Raf1 {[%clk 0:00:59]}  Nxe3 {[%clk 0:00:10]} 26. Bh5+ {[%clk 0:00:55]}  Ke7 {[%clk 0:00:03]} 27. Qxe3 {[%clk 0:00:46]}  Bxf4 {[%clk 0:00:03]} 28. Qxf4 {[%clk 0:00:43]}  Qxh5 {[%clk 0:00:04]} 29. a4 {[%clk 0:00:35]}  a6 {[%clk 0:00:04]} 30. Ba3+ {[%clk 0:00:34]}  Kf7 {[%clk 0:00:03]} 31. Qd6 {[%clk 0:00:26]}  Rxg1+ {[%clk 0:00:03]} 32. Kxg1 {[%clk 0:00:23]}  Rg8+ {[%clk 0:00:01]} 33. Kh1 {[%clk 0:00:23]} 1-0


[Site "https://www.chess.com"]

[Event "Titled Tuesday Blitz March 29 Late 2022"]
[White "Meduri, Aakaash"]
[Black "Bryakin, Mikhail"]
[WhiteFideId "2032252"]
[BlackFideId "4165314"]
[WhiteElo "2096"]
[BlackElo "2417"]
[Result "1-0"]
[Round "02"]
[TimeControl "180+1"]
[Date "2022.03.30"]
[WhiteClock "0:00:09"]
[BlackClock "0:00:51"]

1. d4 {[%clk 0:02:55]}  Nf6 {[%clk 0:02:58]} 2. Nc3 {[%clk 0:02:55]}  g6 {[%clk 0:02:57]} 3. e4 {[%clk 0:02:54]}  d6 {[%clk 0:02:57]} 4. Bf4 {[%clk 0:02:54]}  Bg7 {[%clk 0:02:57]} 5. Qd2 {[%clk 0:02:55]}  O-O {[%clk 0:02:57]} 6. h4 {[%clk 0:02:54]}  c5 {[%clk 0:02:55]} 7. dxc5 {[%clk 0:02:51]}  dxc5 {[%clk 0:02:55]} 8. Qe3 {[%clk 0:02:43]}  Qa5 {[%clk 0:02:52]} 9. O-O-O {[%clk 0:02:41]}  Nc6 {[%clk 0:02:52]} 10. Be2 {[%clk 0:02:35]}  Nd4 {[%clk 0:02:50]} 11. Bh6 {[%clk 0:02:27]}  Be6 {[%clk 0:02:37]} 12. Bxg7 {[%clk 0:02:24]}  Kxg7 {[%clk 0:02:38]} 13. h5 {[%clk 0:02:21]}  Ng8 {[%clk 0:02:30]} 14. hxg6 {[%clk 0:02:14]}  fxg6 {[%clk 0:02:30]} 15. Qg5 {[%clk 0:02:01]}  h6 {[%clk 0:02:25]} 16. Qe5+ {[%clk 0:02:00]}  Rf6 {[%clk 0:02:21]} 17. Rxd4 {[%clk 0:02:01]}  b5 {[%clk 0:02:03]} 18. Qxc5 {[%clk 0:01:28]}  Rc8 {[%clk 0:01:54]} 19. Qb4 {[%clk 0:01:27]}  Qc7 {[%clk 0:01:53]} 20. Nf3 {[%clk 0:01:23]}  Rf4 {[%clk 0:01:41]} 21. Rhd1 {[%clk 0:01:07]}  Rff8 {[%clk 0:01:33]} 22. R4d2 {[%clk 0:00:59]}  Nf6 {[%clk 0:01:29]} 23. Nxb5 {[%clk 0:00:57]}  Qb7 {[%clk 0:01:28]} 24. Qd4 {[%clk 0:00:54]}  a6 {[%clk 0:01:25]} 25. Nc3 {[%clk 0:00:51]}  Rfd8 {[%clk 0:01:26]} 26. Qe5 {[%clk 0:00:50]}  Rxd2 {[%clk 0:01:25]} 27. Rxd2 {[%clk 0:00:50]}  Bf7 {[%clk 0:01:26]} 28. Nd5 {[%clk 0:00:48]}  Rc5 {[%clk 0:01:25]} 29. Qxe7 {[%clk 0:00:42]}  Qxe7 {[%clk 0:01:24]} 30. Nxe7 {[%clk 0:00:42]}  Nxe4 {[%clk 0:01:25]} 31. Rd7 {[%clk 0:00:42]}  Nxf2 {[%clk 0:01:22]} 32. Bxa6 {[%clk 0:00:28]}  Ng4 {[%clk 0:01:16]} 33. Bd3 {[%clk 0:00:25]}  Kf8 {[%clk 0:01:14]} 34. Ra7 {[%clk 0:00:23]}  g5 {[%clk 0:01:12]} 35. Nf5 {[%clk 0:00:20]}  Bd5 {[%clk 0:01:09]} 36. b4 {[%clk 0:00:12]}  Rc3 {[%clk 0:01:10]} 37. Kd2 {[%clk 0:00:12]}  Rc8 {[%clk 0:01:11]} 38. a4 {[%clk 0:00:10]}  Nf6 {[%clk 0:01:09]} 39. Ne5 {[%clk 0:00:08]}  Rb8 {[%clk 0:01:03]} 40. Ng6+ {[%clk 0:00:08]}  Ke8 {[%clk 0:01:03]} 41. Nd6+ {[%clk 0:00:06]}  Kd8 {[%clk 0:01:02]} 42. b5 {[%clk 0:00:07]}  Bxg2 {[%clk 0:01:02]} 43. Ne5 {[%clk 0:00:06]}  Bd5 {[%clk 0:01:00]} 44. Rg7 {[%clk 0:00:05]}  Rb6 {[%clk 0:01:00]} 45. Nf5 {[%clk 0:00:05]}  Re6 {[%clk 0:01:00]} 46. Nf7+ {[%clk 0:00:05]}  Ke8 {[%clk 0:00:59]} 47. Nd4 {[%clk 0:00:06]}  Kf8 {[%clk 0:01:00]} 48. Nxe6+ {[%clk 0:00:06]}  Bxe6 {[%clk 0:01:01]} 49. Rg6 {[%clk 0:00:07]}  Kxf7 {[%clk 0:01:01]} 50. Rxh6 {[%clk 0:00:07]}  g4 {[%clk 0:01:01]} 51. Rh1 {[%clk 0:00:07]}  Bd5 {[%clk 0:01:00]} 52. Rg1 {[%clk 0:00:08]}  Ke6 {[%clk 0:01:00]} 53. Ke3 {[%clk 0:00:08]}  Ke5 {[%clk 0:01:00]} 54. c4 {[%clk 0:00:09]}  Bf3 {[%clk 0:01:00]} 55. a5 {[%clk 0:00:09]}  Nd7 {[%clk 0:00:58]} 56. b6 {[%clk 0:00:08]}  Nc5 {[%clk 0:00:59]} 57. a6 {[%clk 0:00:08]}  Nxa6 {[%clk 0:00:59]} 58. Be2 {[%clk 0:00:08]}  Bc6 {[%clk 0:00:56]} 59. Bxg4 {[%clk 0:00:08]}  Kd6 {[%clk 0:00:57]} 60. Bf3 {[%clk 0:00:08]}  Bd7 {[%clk 0:00:58]} 61. Kd4 {[%clk 0:00:07]}  Nc5 {[%clk 0:00:56]} 62. Rg6+ {[%clk 0:00:08]}  Ne6+ {[%clk 0:00:57]} 63. Kc3 {[%clk 0:00:08]}  Kc5 {[%clk 0:00:54]} 64. Bd5 {[%clk 0:00:08]}  Nf4 {[%clk 0:00:53]} 65. b7 {[%clk 0:00:09]}  Nxg6 {[%clk 0:00:52]} 66. b8=Q {[%clk 0:00:09]}  Bc6 {[%clk 0:00:51]} 67. Qb4# {[%clk 0:00:09]} 1-0


[Site "https://www.chess.com"]

[Event "Titled Tuesday Blitz March 29 Late 2022"]
[White "Milanovic, Marko"]
[Black "Piliczewski, Bogusz"]
[WhiteFideId "980129"]
[BlackFideId "1104144"]
[WhiteElo "2159"]
[BlackElo "1896"]
[Result "1-0"]
[Round "02"]
[TimeControl "180+1"]
[Date "2022.03.30"]
[WhiteClock "0:02:08"]
[BlackClock "0:00:49"]

1. e4 {[%clk 0:03:00]}  c6 {[%clk 0:02:59]} 2. Nf3 {[%clk 0:03:01]}  d5 {[%clk 0:03:00]} 3. Nc3 {[%clk 0:03:01]}  Bg4 {[%clk 0:02:59]} 4. h3 {[%clk 0:03:01]}  Bxf3 {[%clk 0:02:59]} 5. Qxf3 {[%clk 0:03:02]}  dxe4 {[%clk 0:02:59]} 6. Nxe4 {[%clk 0:03:01]}  e6 {[%clk 0:02:59]} 7. Bc4 {[%clk 0:03:01]}  Nd7 {[%clk 0:02:59]} 8. c3 {[%clk 0:03:01]}  Ngf6 {[%clk 0:02:59]} 9. d4 {[%clk 0:03:01]}  Be7 {[%clk 0:02:57]} 10. O-O {[%clk 0:03:01]}  O-O {[%clk 0:02:57]} 11. Re1 {[%clk 0:03:02]}  Nxe4 {[%clk 0:02:52]} 12. Qxe4 {[%clk 0:03:02]}  Nf6 {[%clk 0:02:52]} 13. Qc2 {[%clk 0:03:03]}  c5 {[%clk 0:02:48]} 14. dxc5 {[%clk 0:03:03]}  Bxc5 {[%clk 0:02:47]} 15. Bg5 {[%clk 0:03:03]}  Qb6 {[%clk 0:02:37]} 16. Rad1 {[%clk 0:02:55]}  Rad8 {[%clk 0:02:25]} 17. a4 {[%clk 0:02:50]}  a5 {[%clk 0:02:23]} 18. b3 {[%clk 0:02:38]}  Rxd1 {[%clk 0:02:15]} 19. Rxd1 {[%clk 0:02:39]}  Bxf2+ {[%clk 0:02:06]} 20. Qxf2 {[%clk 0:02:18]}  Qxf2+ {[%clk 0:02:04]} 21. Kxf2 {[%clk 0:02:19]}  Ne4+ {[%clk 0:02:04]} 22. Ke3 {[%clk 0:02:20]}  Nxg5 {[%clk 0:02:04]} 23. h4 {[%clk 0:02:21]}  h6 {[%clk 0:01:38]} 24. hxg5 {[%clk 0:02:19]}  hxg5 {[%clk 0:01:38]} 25. Rd7 {[%clk 0:02:20]}  Rb8 {[%clk 0:01:34]} 26. b4 {[%clk 0:02:15]}  axb4 {[%clk 0:01:32]} 27. cxb4 {[%clk 0:02:16]}  Rc8 {[%clk 0:01:23]} 28. Kd3 {[%clk 0:02:15]}  Ra8 {[%clk 0:01:08]} 29. a5 {[%clk 0:02:13]}  b6 {[%clk 0:01:05]} 30. a6 {[%clk 0:02:10]}  g6 {[%clk 0:00:59]} 31. a7 {[%clk 0:02:10]}  g4 {[%clk 0:00:55]} 32. Bb5 {[%clk 0:02:10]}  Rc8 {[%clk 0:00:51]} 33. Bc6 {[%clk 0:02:08]}  Rxc6 {[%clk 0:00:50]} 34. a8=Q+ {[%clk 0:02:08]}  Kg7 {[%clk 0:00:49]} 35. Qxc6 {[%clk 0:02:08]} 1-0


[Site "https://www.chess.com"]

[Event "Titled Tuesday Blitz March 29 Late 2022"]
[White "Mortazavi, Ali"]
[Black "Rostovtsev, Dmitry"]
[WhiteFideId "401323"]
[BlackFideId "34278320"]
[WhiteElo "2339"]
[BlackElo "2359"]
[Result "1-0"]
[Round "02"]
[TimeControl "180+1"]
[Date "2022.03.29"]
[WhiteClock "0:01:37"]
[BlackClock "0:02:32"]

1. Nf3 {[%clk 0:02:59]}  g6 {[%clk 0:03:00]} 2. e4 {[%clk 0:02:58]}  Bg7 {[%clk 0:03:00]} 3. d4 {[%clk 0:02:58]}  d6 {[%clk 0:03:00]} 4. Nc3 {[%clk 0:02:58]}  Nc6 {[%clk 0:03:00]} 5. Bb5 {[%clk 0:02:52]}  Bd7 {[%clk 0:03:00]} 6. h3 {[%clk 0:02:44]}  Nf6 {[%clk 0:02:59]} 7. e5 {[%clk 0:02:35]}  dxe5 {[%clk 0:02:58]} 8. dxe5 {[%clk 0:02:33]}  Ng8 {[%clk 0:02:59]} 9. Qe2 {[%clk 0:02:30]}  a6 {[%clk 0:02:58]} 10. Bc4 {[%clk 0:02:25]}  e6 {[%clk 0:02:57]} 11. Bg5 {[%clk 0:02:12]}  Nge7 {[%clk 0:02:58]} 12. h4 {[%clk 0:02:11]}  h6 {[%clk 0:02:58]} 13. Bf4 {[%clk 0:02:11]}  Nf5 {[%clk 0:02:57]} 14. O-O-O {[%clk 0:02:08]}  Qe7 {[%clk 0:02:58]} 15. g4 {[%clk 0:02:06]}  Nxh4 {[%clk 0:02:57]} 16. Nxh4 {[%clk 0:02:00]}  g5 {[%clk 0:02:57]} 17. Bg3 {[%clk 0:01:57]}  gxh4 {[%clk 0:02:57]} 18. Bxh4 {[%clk 0:01:58]}  Qc5 {[%clk 0:02:56]} 19. f4 {[%clk 0:01:53]}  b5 {[%clk 0:02:31]} 20. Bb3 {[%clk 0:01:52]}  Nd4 {[%clk 0:02:31]} 21. Qd3 {[%clk 0:01:39]}  Nxb3+ {[%clk 0:02:31]} 22. axb3 {[%clk 0:01:39]}  Bc6 {[%clk 0:02:32]} 23. Qd8+ {[%clk 0:01:37]} 1-0


[Site "https://www.chess.com"]

[Event "Titled Tuesday Blitz March 29 Late 2022"]
[White "Pakleza, Zbigniew"]
[Black "Bibasa, Bob"]
[WhiteFideId "1119290"]
[BlackFideId "10000240"]
[WhiteElo "2467"]
[BlackElo "2056"]
[Result "0-1"]
[Round "02"]
[TimeControl "180+1"]
[Date "2022.03.30"]
[WhiteClock "0:00:06"]
[BlackClock "0:00:07"]

1. Nf3 {[%clk 0:03:00]}  c5 {[%clk 0:02:59]} 2. c3 {[%clk 0:02:58]}  d5 {[%clk 0:02:56]} 3. d4 {[%clk 0:02:59]}  Bf5 {[%clk 0:02:54]} 4. Qb3 {[%clk 0:02:55]}  Qc7 {[%clk 0:02:52]} 5. dxc5 {[%clk 0:02:50]}  e6 {[%clk 0:02:50]} 6. Nd4 {[%clk 0:02:46]}  Bg6 {[%clk 0:02:49]} 7. Qa4+ {[%clk 0:02:43]}  Nc6 {[%clk 0:02:48]} 8. b4 {[%clk 0:02:41]}  Nf6 {[%clk 0:02:43]} 9. e3 {[%clk 0:02:26]}  Be7 {[%clk 0:02:40]} 10. Bb5 {[%clk 0:02:22]}  O-O {[%clk 0:02:38]} 11. Bxc6 {[%clk 0:02:08]}  bxc6 {[%clk 0:02:38]} 12. Qxc6 {[%clk 0:02:09]}  Qe5 {[%clk 0:02:30]} 13. Qb5 {[%clk 0:01:53]}  a5 {[%clk 0:02:22]} 14. Nc6 {[%clk 0:01:44]}  Qc7 {[%clk 0:02:15]} 15. Nd2 {[%clk 0:01:37]}  Ne4 {[%clk 0:02:02]} 16. Nxe4 {[%clk 0:01:29]}  Bxe4 {[%clk 0:02:02]} 17. f3 {[%clk 0:01:13]}  Bh4+ {[%clk 0:01:58]} 18. Ke2 {[%clk 0:01:11]}  Bg6 {[%clk 0:01:54]} 19. Nxa5 {[%clk 0:00:58]}  Rfb8 {[%clk 0:01:51]} 20. Qc6 {[%clk 0:00:54]}  Qe5 {[%clk 0:01:47]} 21. Bd2 {[%clk 0:00:47]}  Qf5 {[%clk 0:01:35]} 22. e4 {[%clk 0:00:48]}  dxe4 {[%clk 0:01:35]} 23. Qxe4 {[%clk 0:00:49]}  Qh5 {[%clk 0:01:30]} 24. Qe3 {[%clk 0:00:42]}  Rd8 {[%clk 0:01:23]} 25. Rad1 {[%clk 0:00:32]}  Rd3 {[%clk 0:01:18]} 26. Qxd3 {[%clk 0:00:31]}  Bxd3+ {[%clk 0:01:18]} 27. Kxd3 {[%clk 0:00:32]}  Qg6+ {[%clk 0:01:09]} 28. Kc4 {[%clk 0:00:28]}  Qxg2 {[%clk 0:01:07]} 29. c6 {[%clk 0:00:17]}  Qxf3 {[%clk 0:01:06]} 30. Kb3 {[%clk 0:00:16]}  Rxa5 {[%clk 0:00:58]} 31. bxa5 {[%clk 0:00:17]}  Qxc6 {[%clk 0:00:59]} 32. c4 {[%clk 0:00:17]}  f5 {[%clk 0:00:56]} 33. Bb4 {[%clk 0:00:15]}  Bf6 {[%clk 0:00:48]} 34. Rhf1 {[%clk 0:00:13]}  Kf7 {[%clk 0:00:46]} 35. Rd6 {[%clk 0:00:13]}  Qb7 {[%clk 0:00:39]} 36. Rfd1 {[%clk 0:00:10]}  Be7 {[%clk 0:00:33]} 37. c5 {[%clk 0:00:09]}  Bxd6 {[%clk 0:00:27]} 38. Rxd6 {[%clk 0:00:10]}  f4 {[%clk 0:00:18]} 39. c6 {[%clk 0:00:11]}  Qb5 {[%clk 0:00:14]} 40. c7 {[%clk 0:00:07]}  Qb7 {[%clk 0:00:14]} 41. Rd7+ {[%clk 0:00:08]}  Kf6 {[%clk 0:00:13]} 42. Re7 {[%clk 0:00:05]}  f3 {[%clk 0:00:12]} 43. Re8 {[%clk 0:00:04]}  Qxc7 {[%clk 0:00:12]} 44. Rf8+ {[%clk 0:00:05]}  Ke5 {[%clk 0:00:12]} 45. Rxf3 {[%clk 0:00:06]}  Kd4 {[%clk 0:00:12]} 46. Rc3 {[%clk 0:00:05]}  Qb7 {[%clk 0:00:11]} 47. Rc4+ {[%clk 0:00:04]}  Kd3 {[%clk 0:00:11]} 48. Rc5 {[%clk 0:00:05]}  e5 {[%clk 0:00:11]} 49. Rxe5 {[%clk 0:00:05]}  Qf7+ {[%clk 0:00:10]} 50. Ka3 {[%clk 0:00:04]}  Kc2 {[%clk 0:00:10]} 51. Rc5+ {[%clk 0:00:04]}  Kd3 {[%clk 0:00:09]} 52. Ka4 {[%clk 0:00:05]}  Qd7+ {[%clk 0:00:09]} 53. Kb3 {[%clk 0:00:04]}  Qe6+ {[%clk 0:00:10]} 54. Kb2 {[%clk 0:00:04]}  g6 {[%clk 0:00:09]} 55. Rc3+ {[%clk 0:00:04]}  Kd4 {[%clk 0:00:09]} 56. a3 {[%clk 0:00:05]}  Qe2+ {[%clk 0:00:09]} 57. Rc2 {[%clk 0:00:05]}  Qb5 {[%clk 0:00:08]} 58. Rd2+ {[%clk 0:00:04]}  Kc4 {[%clk 0:00:08]} 59. Rc2+ {[%clk 0:00:05]}  Kd4 {[%clk 0:00:08]} 60. Rc5 {[%clk 0:00:06]}  Qe2+ {[%clk 0:00:07]} 61. Kb3 {[%clk 0:00:06]}  Qd1+ {[%clk 0:00:08]} 62. Kb2 {[%clk 0:00:05]}  Qe2+ {[%clk 0:00:08]} 63. Rc2 {[%clk 0:00:06]}  Qe6 {[%clk 0:00:06]} 64. Rd2+ {[%clk 0:00:06]}  Kc4 {[%clk 0:00:06]} 65. Rc2+ {[%clk 0:00:05]}  Kb5 {[%clk 0:00:07]} 66. Rc3 {[%clk 0:00:03]}  Qe2+ {[%clk 0:00:07]} 67. Kc1 {[%clk 0:00:03]}  Qxh2 {[%clk 0:00:07]} 68. Rc5+ {[%clk 0:00:04]}  Ka4 {[%clk 0:00:06]} 69. a6 {[%clk 0:00:03]}  Qh1+ {[%clk 0:00:06]} 70. Kd2 {[%clk 0:00:03]}  Qg2+ {[%clk 0:00:06]} 71. Ke3 {[%clk 0:00:03]}  Qg3+ {[%clk 0:00:06]} 72. Kd4 {[%clk 0:00:04]}  Qf4+ {[%clk 0:00:06]} 73. Kd5 {[%clk 0:00:04]}  Qf3+ {[%clk 0:00:06]} 74. Ke6 {[%clk 0:00:03]}  Qe2+ {[%clk 0:00:06]} 75. Kd7 {[%clk 0:00:03]}  Qxa6 {[%clk 0:00:05]} 76. Ke7 {[%clk 0:00:03]}  Qb7+ {[%clk 0:00:05]} 77. Kf6 {[%clk 0:00:03]}  Qb6+ {[%clk 0:00:04]} 78. Kg5 {[%clk 0:00:03]}  Qe6 {[%clk 0:00:04]} 79. Kh6 {[%clk 0:00:03]}  Qh3+ {[%clk 0:00:04]} 80. Kg7 {[%clk 0:00:03]}  h5 {[%clk 0:00:05]} 81. Ra5+ {[%clk 0:00:03]}  Kb3 {[%clk 0:00:05]} 82. Kxg6 {[%clk 0:00:04]}  h4 {[%clk 0:00:05]} 83. Rh5 {[%clk 0:00:02]}  Qg4+ {[%clk 0:00:05]} 84. Rg5 {[%clk 0:00:02]}  Qe4+ {[%clk 0:00:05]} 85. Kh5 {[%clk 0:00:02]}  h3 {[%clk 0:00:05]} 86. Rg4 {[%clk 0:00:02]}  Qe8+ {[%clk 0:00:05]} 87. Kh4 {[%clk 0:00:02]}  h2 {[%clk 0:00:06]} 88. Rg3+ {[%clk 0:00:03]}  Ka4 {[%clk 0:00:06]} 89. Rh3 {[%clk 0:00:04]}  Qh8+ {[%clk 0:00:06]} 90. Kg3 {[%clk 0:00:05]}  Qxh3+ {[%clk 0:00:06]} 91. Kxh3 {[%clk 0:00:06]}  h1=Q+ {[%clk 0:00:07]} 0-1


[Site "https://www.chess.com"]